bitfinex/quotes_SOLUSD_20251126
["timestamp","ask_amount","ask_price","bid_price","bid_amount"]
[1764188942246,0.65,143.41,143.38,12.11865881]
[1764188943248,0.65,143.41,143.38,6.97437173]
[1764188943450,7.62320652,143.41,143.37,6.97473761]
[1764188943868,0.65,143.4,143.37,6.97473761]
[1764188944772,0.65,143.4,143.35,5.14428708]
[1764188945166,7.62360499,143.4,143.35,11.40016259]
[1764188945570,0.65,143.39,143.35,6.97587551]
[1764188945755,0.14216157,143.37,143.32,11.40157197]
[1764188945950,3.08,143.38,143.34,4.42428708]
[1764188946271,3.73,143.38,143.34,4.42428708]
[1764188946475,10.70460158,143.38,143.34,12.10066633]
[1764188947371,0.68,143.41,143.36,4.42428708]
[1764188947577,3.77910514,143.4,143.35,5.12428708]
[1764188947875,0.68,143.39,143.35,4.42428708]
[1764188948453,0.68,143.39,143.35,11.39990645]
[1764188949559,7.65398796,143.39,143.35,11.39990645]
[1764188949766,8.20339222,143.4,143.35,11.39990645]
[1764188949767,0.68,143.38,143.35,11.39990645]
[1764188950175,3.76,143.38,143.35,11.39990645]
[1764188951456,3.08,143.39,143.36,0.7]
[1764188951656,3.08,143.39,143.36,5.12428708]
[1764188951872,3.76,143.39,143.36,5.12428708]
[1764188952083,3.76,143.39,143.36,4.42428708]
[1764188952780,3.76,143.39,143.36,11.39969168]
[1764188952981,3.08,143.39,143.36,12.09969168]
[1764188953162,3.08,143.39,143.37,0.7]
[1764188954174,0.68,143.38,143.36,11.39969168]
[1764188954391,3.76,143.39,143.36,11.39969168]
[1764188954689,0.68,143.38,143.36,11.39969168]
[1764188955272,3.08,143.39,143.36,11.39969168]
[1764188955459,0.68,143.38,143.36,11.39969168]
[1764188955855,3.08,143.39,143.36,11.39969168]
[1764188956055,20.94,143.46,143.36,11.39969168]
[1764188956056,0.68,143.43,143.39,6.97398702]
[1764188956255,0.68,143.43,143.4,4.42428708]
[1764188957284,7.65213961,143.43,143.4,4.42428708]
[1764188957662,0.68,143.42,143.39,11.3982741]
[1764188957961,1.37910514,143.42,143.39,6.97398702]
[1764188958367,0.68,143.41,143.38,11.39860668]
[1764188959668,0.68,143.41,143.39,11.39820652]
[1764188960057,3.76,143.41,143.39,11.39820652]
[1764188966070,0.68,143.4,143.39,6.97391944]
[1764188968390,3.08,143.41,143.39,6.97391944]
[1764188968694,3.76,143.41,143.39,6.97391944]
[1764188970094,3.77910514,143.42,143.39,12.09820652]
[1764188970298,4.45910514,143.42,143.39,11.39820652]
[1764188971491,3.08,143.42,143.4,5.12428708]
[1764188971680,0.98342828,143.43,143.4,5.12428708]
[1764188972194,3.76,143.42,143.4,4.42428708]
[1764188972375,3.08,143.42,143.4,4.42428708]
[1764188972565,3.08,143.42,143.4,5.12428708]
[1764188972772,3.76,143.42,143.4,4.42428708]
[1764188973073,0.68,143.42,143.4,11.39767417]
[1764188973268,3.76,143.42,143.4,11.39767417]
[1764188975072,0.68,143.42,143.4,11.39767417]
[1764188975782,3.08,143.42,143.4,11.39767417]
[1764188975986,0.69910514,143.44,143.41,4.42428708]
[1764188976297,3.76,143.45,143.43,4.42428708]
[1764188976878,3.08,143.45,143.43,4.42428708]
[1764188977084,0.68,143.44,143.43,4.42428708]
[1764188978198,0.68,143.44,143.43,11.39632919]
[1764188978375,3.08,143.45,143.43,11.39632919]
[1764188978582,3.08,143.46,143.44,5.12428708]
[1764188978781,3.76,143.46,143.42,11.39675436]
[1764188978983,1.37910514,143.45,143.42,11.39675436]
[1764188979182,0.68,143.44,143.42,11.39675436]
[1764188986608,0.68,143.44,143.42,9.80488918]
[1764188986815,0.69910514,143.47,143.43,3.5024219]
[1764188987008,0.71,143.48,143.46,2.8324219]
[1764188987009,0.69910514,143.48,143.46,2.8324219]
[1764188987204,3.77910514,143.48,143.46,2.8324219]
[1764188987411,4.48910514,143.48,143.45,2.8324219]
[1764188987616,0.71,143.47,143.45,2.8324219]
[1764188988695,3.77910514,143.48,143.45,9.80337719]
[1764188988898,4.48910514,143.48,143.45,9.80337719]
[1764188989107,4.63126671,143.48,143.45,9.80337719]
[1764188990492,4.63126671,143.48,143.45,2.8324219]
[1764188990810,4.48910514,143.48,143.46,2.8324219]
[1764188991127,3.79,143.48,143.46,2.8324219]
[1764188991624,0.71,143.48,143.46,2.8324219]
[1764188992111,3.79,143.48,143.46,2.8324219]
[1764188992499,0.71,143.48,143.46,2.8324219]
[1764188992705,3.79,143.48,143.46,2.8324219]
[1764188992892,0.71,143.48,143.46,2.8324219]
[1764188993218,3.79,143.48,143.46,2.8324219]
[1764188993512,0.71,143.48,143.45,10.47338819]
[1764188993714,3.79,143.48,143.45,10.47338819]
[1764188993912,3.08,143.47,143.45,10.47338819]
[1764188994095,0.71,143.48,143.45,10.47338819]
[1764188994300,3.08,143.47,143.45,10.47338819]
[1764188994611,3.08,143.47,143.45,9.80338819]
[1764188994794,3.79,143.47,143.45,9.80338819]
[1764188994993,1.40910514,143.46,143.42,9.80495013]
[1764188995196,1.40910514,143.46,143.42,10.47495013]
[1764188995410,0.71,143.45,143.38,0.67]
[1764188995607,0.28432314,143.43,143.39,9.80596921]
[1764188995796,0.71,143.42,143.39,9.80596921]
[1764188995991,0.71,143.42,143.39,10.47596921]
[1764188996196,0.71,143.42,143.4,2.8324219]
[1764188996392,0.99432314,143.43,143.4,2.8324219]
[1764188996814,0.71,143.45,143.42,2.8324219]
[1764188997034,3.08,143.43,143.42,2.8324219]
[1764189000409,3.08,143.43,143.41,3.5024219]
[1764189000699,3.08,143.43,143.41,10.47531189]
[1764189001700,3.08,143.43,143.4,7.64342762]
[1764189002017,3.08,143.43,143.41,2.8324219]
[1764189002325,3.08,143.43,143.41,3.5024219]
[1764189003622,3.08,143.43,143.41,10.47522203]
[1764189003832,3.08,143.43,143.41,3.5024219]
[1764189004015,3.08,143.43,143.41,10.47542491]
[1764189005331,3.5424219,143.42,143.35,16.308864]
[1764189005515,6.97398702,143.39,143.34,9.80865736]
[1764189005711,3.79,143.38,143.34,9.80865736]
[1764189006326,0.71,143.37,143.34,9.80865736]
[1764189006512,0.28432314,143.41,143.36,2.8324219]
[1764189006713,3.08,143.4,143.38,2.8324219]
[1764189007127,3.74,143.4,143.38,2.8324219]
[1764189007316,3.08,143.4,143.38,2.8324219]
[1764189007503,3.74,143.4,143.38,2.8324219]
[1764189008716,0.28432314,143.41,143.38,10.50681171]
[1764189008907,10.99749352,143.41,143.38,3.5324219]
[1764189009107,10.99749352,143.41,143.38,2.8324219]
[1764189009310,0.66,143.4,143.38,2.8324219]
[1764189011125,3.08,143.41,143.39,3.5324219]
[1764189011346,3.08,143.41,143.4,2.8324219]
[1764189011515,0.69910514,143.45,143.41,16.308864]
[1764189011704,0.69910514,143.5,143.44,2.8324219]
[1764189012011,0.66,143.46,143.44,2.8324219]
[1764189012330,0.66,143.46,143.43,2.8324219]
[1764189012925,0.66,143.46,143.42,0.7]
[1764189013229,0.66,143.46,143.43,6.97204211]
[1764189013523,0.66,143.46,143.42,0.7]
[1764189013524,10.71058782,143.46,143.42,6.97234965]
[1764189013915,0.66,143.45,143.42,7.67234965]
[1764189016707,3.74,143.46,143.42,7.67234965]
[1764189017114,0.66,143.46,143.42,7.67234965]
[1764189017320,3.74,143.46,143.42,7.67234965]
[1764189018015,0.66,143.45,143.42,6.97234965]
[1764189019029,0.66,143.45,143.41,7.66286206]
[1764189019030,8.3302724,143.45,143.41,7.66286206]
[1764189020131,11.1626943,143.45,143.41,7.66286206]
[1764189020726,8.3302724,143.45,143.41,7.66286206]
[1764189023014,8.3302724,143.45,143.4,24.40725243]
[1764189023213,8.3302724,143.45,143.42,0.69]
[1764189023214,1.35910514,143.45,143.42,0.69]
[1764189024226,0.69910514,143.45,143.42,0.69]
[1764189024430,3.08,143.46,143.42,0.69]
[1764189024632,11.40838769,143.49,143.43,2.8324219]
[1764189025116,11.40838769,143.49,143.44,7.66155605]
[1764189025556,0.66,143.48,143.44,6.97155605]
[1764189025734,0.66,143.48,143.44,7.66155605]
[1764189027021,0.66,143.48,143.45,0.69]
[1764189027222,0.66,143.48,143.44,24.40044617]
[1764189027428,0.66,143.48,143.44,25.09044617]
[1764189027630,3.08,143.5,143.45,3.5224219]
[1764189028044,3.08,143.5,143.46,0.69]
[1764189029121,3.08,143.5,143.47,6.97009827]
[1764189029321,3.74,143.5,143.47,6.97009827]
[1764189029929,3.74,143.5,143.47,7.66009827]
[1764189030122,3.08,143.5,143.47,7.66009827]
[1764189030334,3.74,143.5,143.47,7.66009827]
[1764189030535,0.66,143.5,143.47,7.66009827]
[1764189031240,3.28,143.51,143.48,0.69]
[1764189031433,3.94,143.51,143.48,0.69]
[1764189032345,0.66,143.5,143.47,6.97009827]
[1764189032527,0.66,143.5,143.47,7.66009827]
[1764189037751,0.2,143.51,143.47,24.39534396]
[1764189037959,0.2,143.51,143.48,0.69]
[1764189038265,0.2,143.51,143.49,0.5]
[1764189039057,16.308864,143.48,143.41,0.69]
[1764189039351,2.8324219,143.43,143.39,7.66398702]
[1764189039554,2.8324219,143.41,143.38,6.97429554]
[1764189039757,2.8324219,143.41,143.32,15.97751341]
[1764189039758,2.8324219,143.39,143.33,7.66690643]
[1764189039939,2.8324219,143.39,143.32,15.97751341]
[1764189039940,2.8324219,143.36,143.32,7.66730796]
[1764189040332,0.66,143.35,143.32,7.66730796]
[1764189040535,3.08,143.38,143.32,7.66730796]
[1764189040827,3.4924219,143.37,143.32,7.66730796]
[1764189041033,0.94432314,143.4,143.33,3.5224219]
[1764189041251,5.9124219,143.39,143.34,0.69]
[1764189041447,6.5724219,143.39,143.34,0.69]
[1764189041655,0.66,143.38,143.35,6.97593303]
[1764189042153,16.308864,143.42,143.35,6.97593303]
[1764189042455,2.8324219,143.4,143.36,0.69]
[1764189042655,3.4924219,143.4,143.36,0.69]
[1764189043857,0.66,143.4,143.37,24.41235962]
[1764189044247,0.66,143.4,143.37,25.10235962]
[1764189044763,3.08,143.41,143.38,0.69]
[1764189045255,0.72,143.4,143.37,24.41235962]
[1764189045642,5.9124219,143.41,143.37,25.10235962]
[1764189045850,6.6324219,143.41,143.37,25.10235962]
[1764189046045,0.72,143.4,143.37,24.41235962]
[1764189046245,6.6324219,143.41,143.37,25.10235962]
[1764189046742,3.8,143.41,143.37,25.10235962]
[1764189047162,0.72,143.4,143.37,24.41235962]
[1764189047657,0.28432314,143.43,143.38,3.5224219]
[1764189047856,9.52994492,143.44,143.39,2.8324219]
[1764189047857,0.72,143.44,143.39,2.8324219]
[1764189048159,3.08,143.44,143.4,2.8324219]
[1764189048362,3.08,143.44,143.4,3.5224219]
[1764189048659,3.08,143.44,143.41,0.69]
[1764189049053,3.08,143.44,143.42,6.97252823]
[1764189049643,3.8,143.44,143.42,6.97252823]
[1764189050160,3.08,143.44,143.42,6.97252823]
[1764189050462,3.8,143.44,143.42,6.97252823]
[1764189051257,0.72,143.43,143.38,4.42584552]
[1764189051471,0.72,143.43,143.38,11.40031894]
[1764189051664,0.72,143.43,143.38,12.09031894]
[1764189051964,0.72,143.43,143.39,0.69]
[1764189052457,0.72,143.43,143.39,18.12496757]
[1764189052845,0.72,143.43,143.39,22.55081309]
[1764189053243,5.84495066,143.43,143.39,6.97398702]
[1764189053459,5.84495066,143.43,143.39,25.09895459]
[1764189053460,1.41910514,143.43,143.39,25.09895459]
[1764189053655,0.72,143.42,143.39,25.09895459]
[1764189053865,0.72,143.42,143.39,24.40895459]
[1764189054258,0.69910514,143.45,143.4,5.11584552]
[1764189054443,3.08,143.45,143.4,5.11584552]
[1764189054648,3.08,143.45,143.41,0.69]
[1764189054855,3.8,143.45,143.41,0.69]
[1764189055257,3.8,143.45,143.42,6.97252823]
[1764189055458,3.08,143.45,143.42,24.40384882]
[1764189055657,3.08,143.45,143.43,0.69]
[1764189056257,3.08,143.45,143.42,24.40384882]
[1764189056557,3.08,143.46,143.43,0.69]
[1764189056757,3.8,143.46,143.43,0.69]
[1764189057160,3.08,143.46,143.44,6.97155605]
[1764189057361,3.08,143.47,143.45,0.69]
[1764189058668,3.08,143.47,143.44,24.40044617]
[1764189059478,3.08,143.47,143.44,25.09044617]
[1764189060251,0.72,143.46,143.42,5.11584552]
[1764189060454,3.08,143.47,143.42,5.11584552]
[1764189060653,3.08,143.47,143.43,5.11584552]
[1764189061174,0.72,143.49,143.44,0.69]
[1764189061359,3.08,143.49,143.44,5.11584552]
[1764189061677,3.8,143.49,143.44,5.11584552]
[1764189061885,3.8,143.49,143.45,0.69]
[1764189062254,3.8,143.49,143.46,6.97058413]
[1764189062973,0.2,143.51,143.47,0.69]
[1764189063164,0.92,143.51,143.47,0.69]
[1764189063361,0.72,143.5,143.47,0.69]
[1764189064251,0.2,143.51,143.48,6.96961248]
[1764189064579,0.92,143.51,143.48,6.96961248]
[1764189065360,5.12495066,143.5,143.47,6.96990005]
[1764189065562,5.84495066,143.5,143.47,6.96990005]
[1764189065774,0.72,143.5,143.47,6.96990005]
[1764189066961,0.72,143.5,143.44,24.400206]
[1764189066962,5.12495066,143.49,143.44,24.400206]
[1764189067367,0.72,143.48,143.44,25.060206]
[1764189067789,0.72,143.48,143.45,0.66]
[1764189068275,0.69910514,143.49,143.46,6.97058413]
[1764189068473,1.41910514,143.49,143.46,6.97058413]
[1764189068867,0.69910514,143.49,143.46,7.63058413]
[1764189069068,0.72,143.49,143.46,7.63058413]
[1764189069264,3.8,143.49,143.46,7.63058413]
[1764189071882,7.16820072,143.51,143.47,5.08584552]
[1764189071883,0.2,143.51,143.47,5.08584552]
[1764189072058,0.2,143.51,143.48,0.66]
[1764189072266,0.2,143.51,143.49,4.42584552]
[1764189072473,0.2,143.51,143.5,4.42584552]
[1764189072977,0.2,143.51,143.5,5.08584552]
[1764189073668,0.2,143.51,143.5,12.05448663]
[1764189074782,0.2,143.51,143.5,6.96864111]
[1764189074972,0.2,143.51,143.5,7.68864111]
[1764189075568,0.2,143.51,143.5,6.96864111]
[1764189075783,0.2,143.51,143.5,0.72]
[1764189076087,0.2,143.51,143.5,5.14584552]
[1764189076474,0.2,143.51,143.5,0.72]
[1764189077482,0.2,143.51,143.49,11.39497228]
[1764189077791,0.2,143.51,143.49,12.11497228]
[1764189078103,0.2,143.51,143.5,0.72]
[1764189078491,5.31584552,143.51,143.46,6.97058413]
[1764189078688,5.31584552,143.51,143.44,0.72]
[1764189078689,4.42584552,143.49,143.44,0.72]
[1764189078866,4.42584552,143.46,143.42,0.72]
[1764189079067,3.08,143.48,143.42,5.14584552]
[1764189079268,8.19584552,143.48,143.43,0.72]
[1764189079599,0.69,143.47,143.43,0.72]
[1764189079772,0.69,143.47,143.43,7.69159687]
[1764189080386,5.12495066,143.5,143.44,0.72]
[1764189080684,7.50584552,143.49,143.44,0.72]
[1764189080889,8.19584552,143.49,143.44,0.72]
[1764189081084,3.08,143.49,143.45,4.42584552]
[1764189081292,3.08,143.49,143.46,4.42584552]
[1764189081790,3.08,143.49,143.47,0.72]
[1764189081990,3.08,143.49,143.47,7.68992374]
[1764189082391,3.08,143.49,143.48,0.72]
[1764189083371,3.08,143.49,143.47,6.96992374]
[1764189083587,3.08,143.49,143.47,7.68992374]
[1764189083788,3.97910514,143.51,143.47,7.68992374]
[1764189084096,3.97910514,143.51,143.46,6.97036997]
[1764189084097,0.69,143.5,143.46,6.97036997]
[1764189084390,4.42584552,143.5,143.47,0.72]
[1764189084590,5.11584552,143.5,143.47,0.72]
[1764189085292,4.42584552,143.5,143.47,0.72]
[1764189085475,3.08,143.5,143.47,0.72]
[1764189085675,3.77,143.5,143.47,0.72]
[1764189085874,3.77,143.5,143.45,22.57281857]
[1764189086072,4.42584552,143.48,143.43,6.97199831]
[1764189086391,4.42584552,143.44,143.39,7.69398702]
[1764189086593,16.59318714,143.47,143.4,4.42584552]
[1764189086792,4.05432314,143.47,143.41,4.42584552]
[1764189086971,4.05432314,143.47,143.41,5.14584552]
[1764189087171,8.48016866,143.47,143.41,5.14584552]
[1764189087695,15.4503387,143.47,143.42,6.97252823]
[1764189087988,0.69,143.46,143.42,7.69252823]
[1764189089093,0.69,143.46,143.42,12.11837375]
[1764189089291,5.11584552,143.46,143.41,7.69281428]
[1764189089504,5.11584552,143.46,143.41,12.1186598]
[1764189089675,0.69,143.46,143.43,6.97204211]
[1764189090598,7.66063026,143.46,143.42,7.69236604]
[1764189090797,4.42584552,143.45,143.42,6.97236604]
[1764189090974,5.11584552,143.45,143.42,6.97236604]
[1764189091176,0.69,143.44,143.42,6.97236604]
[1764189091598,0.69,143.45,143.42,6.97236604]
[1764189092095,0.28432314,143.47,143.43,0.72]
[1764189092271,5.9549102,143.53,143.48,16.308864]
[1764189092272,0.2,143.53,143.48,16.308864]
[1764189092476,0.2,143.53,143.5,4.42584552]
[1764189092675,0.2,143.53,143.5,5.14584552]
[1764189094188,0.89,143.53,143.48,21.84876591]
[1764189094387,0.89,143.51,143.49,6.96903374]
[1764189094988,0.2,143.51,143.49,6.96903374]
[1764189095201,0.2,143.51,143.49,18.70075764]
[1764189096585,0.2,143.51,143.5,12.4517239]
[1764189098775,0.2,143.51,143.5,19.42036501]
[1764189103883,0.2,143.51,143.5,18.70036501]
[1764189104201,0.2,143.51,143.48,11.7317239]
[1764189104202,0.89,143.51,143.48,11.7317239]
[1764189104594,0.72,143.5,143.48,11.7317239]
[1764189105179,0.72,143.5,143.48,18.70120065]
[1764189105604,0.72,143.5,143.48,6.96947675]
[1764189105800,0.72,143.5,143.48,18.70120065]
[1764189105987,0.72,143.5,143.49,11.7317239]
[1764189106190,0.92,143.51,143.49,11.7317239]
[1764189109115,0.2,143.51,143.47,25.05526268]
[1764189109295,0.92,143.51,143.49,11.7317239]
[1764189110713,0.92,143.51,143.49,7.57900958]
[1764189110916,0.92,143.51,143.49,14.54788097]
[1764189111410,0.92,143.51,143.5,7.57900958]
[1764189111411,0.2,143.51,143.5,7.57900958]
[1764189113308,0.2,143.51,143.5,15.20765069]
[1764189114196,0.2,143.51,143.5,14.54765069]
[1764189116519,0.2,143.51,143.5,2.82895418]
[1764189117314,0.2,143.51,143.49,6.96912676]
[1764189117518,0.2,143.51,143.5,2.82895418]
[1764189118012,0.2,143.51,143.5,9.79759529]
[1764189121801,0.2,143.51,143.5,21.77341201]
[1764189125021,1e-08,143.51,143.5,22.47027612]
[1764189131125,1e-08,143.54,143.52,16.308864]
[1764189131307,0.1,143.57,143.53,22.91453663]
[1764189131504,0.1,143.57,143.56,2.82895418]
[1764189132015,0.1,143.57,143.56,0.71]
[1764189132216,0.8,143.57,143.51,3.08]
[1764189132417,3.62895418,143.57,143.52,2.82895418]
[1764189132726,0.8,143.57,143.53,6.96718456]
[1764189132929,0.7,143.56,143.53,9.79613874]
[1764189134302,0.1,143.57,143.55,2.82895418]
[1764189134625,0.1,143.57,143.56,2.82895418]
[1764189134805,0.1,143.57,143.55,2.82895418]
[1764189135005,0.76,143.57,143.55,2.82895418]
[1764189135810,0.76,143.57,143.52,24.38684503]
[1764189136130,0.76,143.57,143.53,2.82895418]
[1764189136430,0.76,143.57,143.54,6.96669917]
[1764189137026,3.36432314,143.56,143.5,9.79759529]
[1764189137326,3.36432314,143.56,143.52,2.82895418]
[1764189137636,0.66,143.55,143.52,2.82895418]
[1764189138537,0.66,143.55,143.52,7.5763206]
[1764189139734,0.66,143.55,143.52,14.54390352]
[1764189140515,7.62621464,143.55,143.51,7.5763206]
[1764189140710,15.20253524,143.55,143.5,7.5763206]
[1764189141040,7.5763206,143.53,143.48,14.54581011]
[1764189141408,0.66,143.52,143.48,14.54581011]
[1764189141808,7.62770574,143.52,143.48,14.54581011]
[1764189142010,10.70770574,143.52,143.48,14.54581011]
[1764189142211,0.66,143.51,143.48,14.54581011]
[1764189142515,0.66,143.51,143.49,7.5763206]
[1764189143830,0.66,143.51,143.49,14.5453791]
[1764189144716,0.66,143.51,143.48,7.5763206]
[1764189145436,0.66,143.51,143.48,7.0763206]
[1764189146228,0.66,143.54,143.5,7.5763206]
[1764189146429,0.66,143.54,143.51,7.5763206]
[1764189146628,0.66,143.54,143.52,7.5763206]
[1764189149418,0.66,143.54,143.53,7.5763206]
[1764189150030,3.08,143.55,143.53,7.5763206]
[1764189150236,3.74,143.55,143.53,7.5763206]
[1764189151036,3.74,143.55,143.53,14.54330221]
[1764189151334,3.08,143.55,143.54,7.5763206]
[1764189152319,3.08,143.55,143.54,14.54301977]
[1764189153434,3.08,143.55,143.53,14.54329896]
[1764189153639,3.08,143.55,143.54,7.5763206]
[1764189154341,3.08,143.55,143.54,14.54301977]
[1764189154833,10.70624303,143.55,143.51,14.54428923]
[1764189155035,10.70624303,143.55,143.52,7.5763206]
[1764189155036,0.66,143.54,143.52,7.5763206]
[1764189155445,0.66,143.54,143.51,14.54428923]
[1764189155824,0.66,143.54,143.51,7.5763206]
[1764189156034,0.66,143.54,143.52,7.5763206]
[1764189156625,0.66,143.54,143.51,14.54412663]
[1764189158751,0.66,143.54,143.51,6.96780603]
[1764189158952,0.66,143.54,143.52,7.5763206]
[1764189159463,0.66,143.54,143.51,14.54412663]
[1764189159647,15.4874051,143.54,143.49,7.5763206]
[1764189159942,7.86064374,143.52,143.48,6.96948188]
[1764189160249,3.08,143.51,143.48,6.96948188]
[1764189160449,3.74,143.51,143.48,6.96948188]
[1764189160751,0.66,143.5,143.48,6.96948188]
[1764189161123,0.66,143.5,143.47,2.83034747]
[1764189161326,3.11467061,143.49,143.44,2.83034747]
[1764189161735,0.66,143.48,143.44,2.83034747]
[1764189161942,3.08,143.47,143.44,2.83034747]
[1764189162337,3.74,143.47,143.44,2.83034747]
[1764189162529,3.74,143.47,143.44,9.80156994]
[1764189162932,0.66,143.46,143.44,9.80156994]
[1764189163440,0.66,143.48,143.45,2.83034747]
[1764189163627,3.08,143.47,143.45,3.49034747]
[1764189163832,3.08,143.47,143.45,2.83034747]
[1764189164532,3.76,143.47,143.45,9.80137704]
[1764189168332,3.76,143.47,143.44,6.97138228]
[1764189168648,3.76,143.47,143.45,2.83034747]
[1764189169236,3.76,143.47,143.45,9.80134187]
[1764189169931,3.08,143.47,143.46,2.83034747]
[1764189170454,3.76,143.47,143.46,2.83034747]
[1764189172559,3.76,143.47,143.45,11.39458735]
[1764189175038,0.68,143.47,143.45,11.39458735]
[1764189177558,10.04966238,143.48,143.45,11.39458735]
[1764189177860,0.68,143.47,143.45,11.39458735]
[1764189179061,3.08,143.48,143.45,11.39458735]
[1764189179258,0.68,143.47,143.41,34.41087337]
[1764189179447,0.68,143.47,143.44,4.42359295]
[1764189179653,0.68,143.47,143.45,4.42359295]
[1764189181059,0.68,143.47,143.44,11.395149]
[1764189181659,0.68,143.47,143.44,12.065149]
[1764189182052,0.68,143.47,143.44,11.395149]
[1764189182564,0.68,143.47,143.44,12.065149]
[1764189183663,6.96572861,143.56,143.46,4.42359295]
[1764189183856,0.68,143.54,143.51,4.42359295]
[1764189184063,0.68,143.54,143.5,4.42359295]
[1764189184257,0.96432314,143.54,143.5,4.42359295]
[1764189184443,0.68,143.53,143.5,4.42359295]
[1764189184645,3.08,143.52,143.5,4.42359295]
[1764189185073,3.76,143.52,143.5,11.39210055]
[1764189185952,3.76,143.52,143.51,4.42359295]
[1764189186571,9.09426806,143.51,143.41,40.70933027]
[1764189186870,4.42359295,143.47,143.42,4.42359295]
[1764189187180,0.28432314,143.45,143.41,0.7]
[1764189187347,0.28432314,143.45,143.39,4.42359295]
[1764189187348,4.42359295,143.44,143.39,4.42359295]
[1764189187543,7.50359295,143.43,143.37,0.7]
[1764189187745,4.42359295,143.4,143.35,4.42359295]
[1764189187945,3.08,143.39,143.35,11.39917901]
[1764189188168,3.76,143.39,143.36,4.42359295]
[1764189188771,3.76,143.39,143.36,5.12359295]
[1764189189168,3.08,143.39,143.35,24.41541863]
[1764189189372,17.42811639,143.45,143.35,24.41541863]
[1764189189373,3.08,143.41,143.38,4.42359295]
[1764189189876,3.08,143.41,143.38,5.12359295]
[1764189190346,3.08,143.41,143.39,4.42359295]
[1764189190551,3.08,143.41,143.38,12.09781301]
[1764189192770,0.96432314,143.4,143.35,0.7]
[1764189192977,5.38791609,143.4,143.34,20.088864]
[1764189193153,0.68,143.39,143.35,4.42359295]
[1764189193348,0.28432314,143.36,143.33,0.2]
[1764189193552,4.70791609,143.34,143.33,0.2]
[1764189193752,0.28432314,143.34,143.33,0.2]
[1764189193948,0.96432314,143.34,143.33,0.2]
[1764189194272,3.08,143.34,143.33,0.2]
[1764189194679,3.08,143.34,143.33,4.62359295]
[1764189195885,3.08,143.34,143.33,0.2]
[1764189197952,0.28432314,143.36,143.33,7.88690643]
[1764189198159,4.04432314,143.36,143.33,7.88690643]
[1764189198465,4.04432314,143.36,143.33,7.17690643]
[1764189198802,3.76,143.36,143.33,11.60049938]
[1764189199085,3.08,143.36,143.34,4.42359295]
[1764189199457,3.76,143.36,143.34,4.42359295]
[1764189199964,3.76,143.36,143.33,11.60049938]
[1764189201377,0.68,143.36,143.33,11.60049938]
[1764189201560,3.76,143.36,143.33,11.60049938]
[1764189203377,3.76,143.36,143.33,12.31049938]
[1764189204463,3.08,143.36,143.33,12.31049938]
[1764189205574,10.05546251,143.36,143.33,0.2]
[1764189205889,0.68,143.35,143.33,0.2]
[1764189208680,12.36402851,143.35,143.33,0.2]
[1764189208877,13.51786101,143.34,143.33,0.2]
[1764189209071,14.19786101,143.34,143.33,0.2]
[1764189209472,9.77426806,143.34,143.33,0.2]
[1764189209680,14.19786101,143.34,143.33,0.2]
[1764189210367,21.17428071,143.34,143.33,0.2]
[1764189213478,14.19786101,143.33,143.32,1e-08]
[1764189213684,14.19786101,143.33,143.27,0.2]
[1764189213685,9.09426806,143.28,143.27,0.2]
[1764189213895,16.59786101,143.28,143.27,0.2]
[1764189214194,9.09426806,143.24,143.23,0.2]
[1764189214491,12.17426806,143.24,143.23,0.2]
[1764189214683,24.25915115,143.24,143.23,0.2]
[1764189215270,12.17426806,143.24,143.23,0.2]
[1764189216476,19.1555582,143.24,143.23,0.2]
[1764189216676,12.17426806,143.24,143.23,0.2]
[1764189217183,3.36432314,143.24,143.23,0.2]